bitfinex-derivatives/quotes_SOLF0:USTF0_20260204
["timestamp","ask_amount","ask_price","bid_price","bid_amount"]
[1770179787775,7.39936797,98.912,98.873,53.71691505]
[1770179787979,7.39936797,98.911,98.873,53.71691505]
[1770179788178,7.39936797,98.91,98.873,53.71691505]
[1770179788382,7.39936797,98.909,98.873,53.71691505]
[1770179788583,7.39936797,98.908,98.873,53.71691505]
[1770179788883,55.54372132,98.919,98.873,53.71691505]
[1770179789183,7.39791677,98.918,98.873,53.71691505]
[1770179789386,55.54372132,98.909,98.851,53.71691505]
[1770179789578,62.94163809,98.908,98.851,53.71691505]
[1770179789779,7.39791677,98.907,98.861,53.71691505]
[1770179789975,7.39791677,98.906,98.861,53.71691505]
[1770179790179,7.39791677,98.905,98.861,53.71691505]
[1770179790377,55.54372132,98.903,98.861,53.71691505]
[1770179790577,62.94163809,98.902,98.861,53.71691505]
[1770179790782,7.39791677,98.901,98.861,53.71691505]
[1770179790985,7.39791677,98.9,98.861,53.71691505]
[1770179791185,55.54372132,98.902,98.861,53.71691505]
[1770179791385,7.39501429,98.901,98.861,53.71691505]
[1770179791587,7.39501429,98.9,98.861,53.71691505]
[1770179791786,55.54372132,98.902,98.861,53.71691505]
[1770179792086,55.54372132,98.899,98.861,53.71691505]
[1770179792287,7.39433985,98.898,98.861,53.71691505]
[1770179792489,55.54372132,98.896,98.853,9.1166]
[1770179792794,7.39433985,98.895,98.848,53.71691505]
[1770179793089,9.112,98.904,98.848,53.71691505]
[1770179793090,55.54372132,98.89,98.848,53.71691505]
[1770179793290,7.39433985,98.889,98.848,53.71691505]
[1770179793592,7.39433985,98.888,98.848,53.71691505]
[1770179793788,7.39433985,98.887,98.848,53.71691505]
[1770179793989,7.39433985,98.886,98.848,53.71691505]
[1770179794186,7.39433985,98.885,98.848,53.71691505]
[1770179794485,55.54372132,98.889,98.848,53.71691505]
[1770179794486,7.39433985,98.884,98.848,53.71691505]
[1770179794691,7.39433985,98.883,98.848,53.71691505]
[1770179794880,55.54372132,98.889,98.848,53.71691505]
[1770179795079,7.39175867,98.888,98.848,53.71691505]
[1770179795282,7.39175867,98.887,98.848,53.71691505]
[1770179795485,7.39175867,98.886,98.848,53.71691505]
[1770179795686,7.39175867,98.885,98.848,53.71691505]
[1770179795985,55.54372132,98.889,98.848,53.71691505]
[1770179796490,55.54372132,98.929,98.861,53.71691505]
[1770179796693,55.54372132,98.929,98.871,53.71691505]
[1770179797089,55.54372132,98.927,98.871,53.71691505]
[1770179797392,55.54372132,98.925,98.871,53.71691505]
[1770179797691,55.54372132,98.923,98.874,9.1147]
[1770179797887,62.93738765,98.922,98.874,9.1147]
[1770179798084,7.39366633,98.921,98.874,9.1147]
[1770179798293,7.39366633,98.92,98.874,62.83161505]
[1770179798492,7.39366633,98.919,98.874,62.83161505]
[1770179798693,7.39366633,98.918,98.874,62.83161505]
[1770179798893,7.39366633,98.917,98.874,62.83161505]
[1770179799094,7.39366633,98.916,98.874,62.83161505]
[1770179799392,7.39366633,98.915,98.874,62.83161505]
[1770179799593,7.39366633,98.914,98.874,62.83161505]
[1770179799893,7.39366633,98.913,98.874,62.83161505]
[1770179800093,7.39366633,98.912,98.874,62.83161505]
[1770179800294,7.39366633,98.911,98.874,53.71691505]
[1770179800493,7.39366633,98.91,98.874,53.71691505]
[1770179800693,7.39366633,98.909,98.874,53.71691505]
[1770179800992,7.39366633,98.908,98.874,53.71691505]
[1770179801186,7.39366633,98.907,98.874,53.71691505]
[1770179801385,7.39366633,98.906,98.874,53.71691505]
[1770179801589,7.39366633,98.905,98.852,53.71691505]
[1770179801894,55.54372132,98.904,98.852,53.71691505]
[1770179808297,55.54372132,98.899,98.837,62.83501505]
[1770179808498,55.54372132,98.889,98.837,62.83501505]
[1770179808698,62.93246476,98.888,98.837,62.83501505]
[1770179808896,3.27645038,98.86,98.782,141.9174]
[1770179809097,3.27645038,98.86,98.79,3.27645038]
[1770179809400,9.42746533,98.889,98.79,3.27645038]
[1770179809401,58.8201717,98.85,98.795,9.122]
[1770179809592,58.8201717,98.85,98.783,403.54]
[1770179810697,58.8201717,98.85,98.785,9.1229]
[1770179810903,58.8201717,98.85,98.786,58.89588816]
[1770179811298,3.27645038,98.84,98.786,58.89588816]
[1770179811803,3.27645038,98.84,98.791,58.89588816]
[1770179812497,141.7845,98.875,98.766,141.9404]
[1770179812498,3.27645038,98.86,98.796,58.89588816]
[1770179812697,7.37328388,98.859,98.801,58.89588816]
[1770179812898,53.77078451,98.864,98.801,58.89588816]
[1770179813694,53.77078451,98.864,98.81,58.89588816]
[1770179813910,3.27645038,98.88,98.821,58.89588816]
[1770179814199,53.77078451,98.882,98.821,58.89588816]
[1770179814803,53.77078451,98.879,98.824,58.89588816]
[1770179815504,53.77078451,98.879,98.829,68.01478816]
[1770179820509,3.27645038,98.87,98.829,58.89588816]
[1770179821003,53.77078451,98.879,98.829,58.89588816]
[1770179821602,53.77078451,98.879,98.83,9.1187]
[1770179821802,57.39603187,98.869,98.815,58.72202269]
[1770179822012,57.39603187,98.859,98.815,58.72202269]
[1770179822911,57.39603187,98.859,98.82,9.1196]
[1770179827113,57.39603187,98.859,98.815,58.72202269]
[1770179827315,57.39603187,98.859,98.807,9.1208]
[1770179828215,57.39603187,98.859,98.811,58.72202269]
[1770179829816,57.39603187,98.859,98.817,9.1199]
[1770179830121,57.39603187,98.859,98.817,67.84192269]
[1770179830824,3.27747376,98.87,98.826,9.1191]
[1770179831123,60.67350563,98.87,98.826,9.1191]
[1770179837429,57.39603187,98.87,98.826,67.84112269]
[1770179837623,60.67350563,98.87,98.826,67.84112269]
[1770179837927,60.67350563,98.87,98.816,9.1201]
[1770179838630,60.67350563,98.87,98.816,67.84212269]
[1770179839427,60.67350563,98.87,98.765,141.9418]
[1770179839627,30.45,98.857,98.77,58.72202269]
[1770179839931,3.27747376,98.84,98.773,58.72202269]
[1770179840128,3.27747376,98.83,98.774,9.1239]
[1770179840829,3.27747376,98.82,98.774,9.1239]
[1770179841029,3.27747376,98.82,98.773,58.72202269]
[1770179841729,54.30763799,98.819,98.764,9.1249]
[1770179841941,57.58511175,98.81,98.764,9.1249]
[1770179842237,3.27747376,98.84,98.781,55.64242528]
[1770179842433,54.30763799,98.839,98.781,55.64242528]
[1770179842929,54.30763799,98.853,98.798,55.64242528]
[1770179843125,54.30763799,98.849,98.798,55.64242528]
[1770179843436,3.27747376,98.82,98.764,55.64242528]
[1770179843730,57.58511175,98.82,98.766,55.64242528]
[1770179844830,57.58511175,98.82,98.768,55.64242528]
[1770179847931,3.27747376,98.81,98.768,55.64242528]
[1770179850332,54.30763799,98.799,98.75,55.64242528]
[1770179850832,3.27747376,98.79,98.75,55.64242528]
[1770179851335,3.27747376,98.78,98.736,55.64242528]
[1770179854532,57.58511175,98.78,98.736,55.64242528]
[1770179854734,3.27747376,98.77,98.736,55.64242528]
[1770179855135,57.58511175,98.77,98.712,55.64242528]
[1770179855634,3.27747376,98.77,98.712,55.64242528]
[1770179855937,9.1232,98.783,98.712,55.64242528]
[1770179855938,3.27747376,98.78,98.712,55.64242528]
[1770179856537,3.27747376,98.78,98.716,55.64242528]
[1770179859441,3.27747376,98.77,98.716,55.64242528]
[1770179859631,3.27747376,98.76,98.716,55.64242528]
[1770179859837,3.27747376,98.75,98.716,55.64242528]
[1770179860336,3.27747376,98.74,98.699,55.64242528]
[1770179862641,57.58511175,98.75,98.699,55.64242528]
[1770179863436,3.27747376,98.74,98.699,55.64242528]
[1770179864942,57.58511175,98.75,98.699,55.64242528]
[1770179866840,9.1253,98.76,98.699,55.64242528]
[1770179867038,12.40277376,98.76,98.701,55.64242528]
[1770179867238,54.30763799,98.759,98.701,55.64242528]
[1770179867435,3.27747376,98.75,98.701,55.64242528]
[1770179873549,54.04776048,98.749,98.701,55.64242528]
[1770179875154,9.1265,98.747,98.701,55.64242528]
[1770179877352,3.27747376,98.73,98.672,403.94]
[1770179877555,3.27747376,98.71,98.65,3.27747376]
[1770179878754,3.27747376,98.71,98.651,9.1353]
[1770179879455,3.27747376,98.71,98.652,54.62475915]
[1770179880554,3.27747376,98.71,98.655,54.62475915]
[1770179880757,9.1282,98.729,98.661,54.62475915]
[1770179880959,57.02919725,98.767,98.711,54.62475915]
[1770179881255,57.02919725,98.779,98.711,54.62475915]
[1770179881456,141.8905,98.801,98.711,54.62475915]
[1770179881457,57.02919725,98.759,98.711,54.62475915]
[1770179882048,3.27747376,98.77,98.711,54.62475915]
[1770179882956,3.27747376,98.77,98.713,54.62475915]
[1770179884559,3.27747376,98.78,98.721,54.62475915]
[1770179885655,3.27747376,98.78,98.721,63.75355915]
[1770179887159,60.30667101,98.78,98.721,63.75355915]
[1770179888361,60.31259294,98.78,98.721,63.75355915]
[1770179892466,7.35981268,98.779,98.721,63.75355915]
[1770179892656,60.31259294,98.78,98.721,63.75355915]
[1770179892861,7.35982496,98.779,98.721,63.75355915]
[1770179893065,60.31259294,98.78,98.721,63.75355915]
[1770179893263,7.35982833,98.779,98.721,63.75355915]
[1770179893568,7.35982833,98.778,98.721,63.75355915]
[1770179893863,60.31259294,98.78,98.734,54.62475915]
[1770179894070,7.36255384,98.779,98.734,54.62475915]
[1770179894259,7.36255384,98.778,98.734,54.62475915]
[1770179894568,7.36255384,98.777,98.734,54.62475915]
[1770179894866,57.02919725,98.78,98.734,54.62475915]
[1770179895256,57.02919725,98.769,98.721,63.75355915]
[1770179895460,57.02919725,98.759,98.708,54.62475915]
[1770179895665,141.9126,98.786,98.708,54.62475915]
[1770179895666,60.31259294,98.75,98.708,54.62475915]
[1770179896057,3.28339569,98.74,98.685,54.62475915]
[1770179897662,3.28339569,98.74,98.687,54.62475915]
[1770179899265,60.31259294,98.74,98.687,54.62475915]
[1770179899562,3.28339569,98.73,98.687,54.62475915]
[1770179901563,3.28339569,98.74,98.687,54.62475915]
[1770179902667,3.28339569,98.74,98.692,55.29445627]
[1770179902967,58.72076361,98.743,98.692,55.29445627]
[1770179905171,3.28339569,98.74,98.692,55.29445627]
[1770179907471,3.28339569,98.74,98.693,9.1314]
[1770179907660,3.28339569,98.74,98.694,55.29445627]
[1770179908871,3.28339569,98.74,98.696,55.29445627]
[1770179913877,3.28339569,98.74,98.699,55.29445627]
[1770179914980,58.72076361,98.743,98.699,55.29445627]
[1770179917281,3.28339569,98.74,98.699,55.29445627]
[1770179923582,9.1273,98.739,98.699,55.29445627]
[1770179924185,151.25305084,98.773,98.658,142.0946]
[1770179924186,9.1256,98.757,98.701,55.29445627]
[1770179925276,58.72076361,98.766,98.706,55.29445627]
[1770179925586,7.37881771,98.765,98.706,55.29445627]
[1770179925882,7.37881771,98.764,98.706,55.29445627]
[1770179926083,3.28339569,98.76,98.706,55.29445627]
[1770179926675,3.28339569,98.76,98.707,9.1301]
[1770179926876,3.28339569,98.76,98.708,55.29445627]
[1770179927281,3.28339569,98.76,98.71,55.29445627]
[1770179928984,58.72076361,98.766,98.712,55.29445627]
[1770179929789,58.72076361,98.766,98.714,55.29445627]
[1770179929985,58.72076361,98.78,98.721,55.29445627]
[1770179930689,3.28339569,98.79,98.724,56.52280385]
[1770179930890,7.38050432,98.789,98.731,56.52280385]
[1770179931188,7.38050432,98.788,98.731,56.52280385]
[1770179931494,58.101519,98.779,98.731,56.52280385]
[1770179933185,58.101519,98.779,98.733,56.52280385]
[1770179933591,61.38491469,98.79,98.733,56.52280385]
[1770179934693,61.38491469,98.79,98.735,56.52280385]
[1770179935795,61.38491469,98.79,98.743,56.52280385]
[1770179936490,9.1228,98.787,98.727,9.1283]
[1770179936691,141.8697,98.816,98.717,62.04687637]
[1770179936692,58.15133266,98.769,98.717,62.04687637]
[1770179937300,3.28339569,98.76,98.718,71.17597637]
[1770179937992,3.28339569,98.76,98.718,62.04687637]
[1770179941799,3.28339569,98.78,98.721,62.04687637]
[1770179941999,3.28339569,98.79,98.731,62.04687637]
[1770179942297,3.28339569,98.8,98.741,62.04687637]
[1770179942502,7.37210896,98.799,98.741,62.04687637]
[1770179942801,61.43472835,98.81,98.741,62.04687637]
[1770179943001,58.15133266,98.808,98.741,62.04687637]
[1770179943202,58.15133266,98.806,98.741,62.04687637]
[1770179943501,65.52388583,98.805,98.741,62.04687637]
[1770179943801,65.52388583,98.805,98.74,3.28339569]
[1770179943802,7.37255317,98.804,98.744,62.04687637]
[1770179943991,7.37255317,98.803,98.744,62.04687637]
[1770179944195,7.37255317,98.802,98.744,62.04687637]
[1770179944401,7.37255317,98.801,98.744,62.04687637]
[1770179944600,58.15133266,98.805,98.744,62.04687637]
[1770179944802,7.36805502,98.804,98.744,62.04687637]
[1770179944995,7.36805502,98.803,98.744,62.04687637]
[1770179945192,7.36805502,98.802,98.744,62.04687637]
[1770179945392,58.15133266,98.805,98.744,62.04687637]
[1770179945602,65.5178774,98.804,98.744,62.04687637]
[1770179945801,7.36654474,98.803,98.744,62.04687637]
[1770179946002,7.36654474,98.802,98.744,62.04687637]
[1770179946203,58.15133266,98.804,98.744,62.04687637]
[1770179946402,7.36573166,98.803,98.744,62.04687637]
[1770179946702,9.1213,98.803,98.744,62.04687637]
[1770179947393,58.15133266,98.802,98.744,62.04687637]
[1770179947600,61.43472835,98.8,98.744,62.04687637]
[1770179948404,61.43353576,98.8,98.744,62.04687637]
[1770179949706,58.15133266,98.789,98.744,62.04687637]
[1770179949908,3.2822031,98.78,98.744,62.04687637]
[1770179950103,3.2822031,98.78,98.677,142.068]
[1770179950104,3.2822031,98.77,98.727,62.04687637]
[1770179950806,61.43353576,98.77,98.727,62.04687637]
[1770179954408,58.15133266,98.77,98.727,62.04687637]
[1770179961313,7.35951816,98.769,98.727,62.04687637]
[1770179961615,63.24835804,98.759,98.709,61.61119276]
[1770179961812,7.35818702,98.758,98.709,61.61119276]
[1770179962012,63.24835804,98.759,98.709,61.61119276]
[1770179965316,63.24835804,98.759,98.711,61.61119276]
[1770179965812,63.24835804,98.788,98.725,61.61119276]
[1770179966017,7.3603437,98.787,98.731,61.61119276]
[1770179966216,63.24835804,98.788,98.731,61.61119276]
[1770179966418,63.24835804,98.788,98.737,61.61119276]
[1770179967216,3.2822031,98.77,98.711,61.61119276]
[1770179967416,63.24835804,98.769,98.711,61.61119276]
[1770179968716,63.24835804,98.767,98.713,61.61119276]
[1770179969314,70.61087502,98.766,98.716,61.61119276]
[1770179969616,63.24835804,98.766,98.716,61.61119276]
[1770179969816,63.24835804,98.766,98.718,61.61119276]
[1770179970817,63.24835804,98.766,98.721,61.61119276]
[1770179974121,7.3587252,98.765,98.721,61.61119276]
[1770179974421,63.24835804,98.766,98.721,61.61119276]
[1770179975222,70.60795476,98.765,98.721,61.61119276]
[1770179975419,63.24835804,98.765,98.721,61.61119276]
[1770179977225,66.53056114,98.76,98.721,61.61119276]
[1770179980224,63.24835804,98.758,98.709,70.74109276]
[1770179980427,63.24835804,98.756,98.709,70.74109276]
[1770179981127,63.24835804,98.756,98.709,61.61119276]
[1770179981824,3.2822031,98.75,98.709,61.61119276]
[1770179982025,66.53056114,98.75,98.709,61.61119276]
[1770179986829,63.24835804,98.75,98.709,61.61119276]
[1770179988434,66.53056114,98.75,98.709,61.61119276]
[1770179993338,9.40541314,98.778,98.711,63.24969246]
[1770179993339,60.69318862,98.766,98.711,63.24969246]
[1770179993533,60.69318862,98.764,98.711,63.24969246]
[1770179993733,60.69318862,98.762,98.711,63.24969246]
[1770179994038,7.36764753,98.761,98.711,63.24969246]
[1770179994336,7.36764753,98.76,98.711,63.24969246]
[1770179994536,7.36764753,98.759,98.711,63.24969246]
[1770179994738,7.36764753,98.758,98.713,63.24969246]
[1770179994937,7.36764753,98.757,98.713,63.24969246]
[1770179995136,7.36764753,98.756,98.713,63.24969246]
[1770179995343,7.36764753,98.755,98.713,63.24969246]
[1770179995543,7.36764753,98.754,98.713,63.24969246]
[1770179995746,60.69318862,98.762,98.713,63.24969246]
[1770179996041,7.37403288,98.761,98.713,63.24969246]
[1770179996247,7.37403288,98.76,98.713,63.24969246]
[1770179996445,7.37403288,98.759,98.713,63.24969246]
[1770179996645,60.69318862,98.762,98.713,63.24969246]
[1770179996646,7.37403288,98.758,98.713,63.24969246]
[1770179996847,7.37403288,98.757,98.713,63.24969246]
[1770179997146,7.37403288,98.756,98.713,63.24969246]
[1770179997346,7.37403288,98.755,98.713,63.24969246]
[1770179997546,7.37403288,98.754,98.713,63.24969246]
[1770179997749,60.69318862,98.762,98.713,63.24969246]
[1770179998048,71.41074753,98.761,98.713,63.24969246]
[1770179998249,10.65030258,98.76,98.713,63.24969246]
[1770179998444,7.36809948,98.759,98.713,63.24969246]
[1770179998648,7.36809948,98.758,98.715,60.26603011]
[1770179998944,7.36809948,98.757,98.715,60.26603011]
[1770179999146,7.36809948,98.756,98.715,60.26603011]
[1770179999346,7.36809948,98.755,98.715,60.26603011]
[1770179999646,7.36809948,98.754,98.715,60.26603011]
[1770179999845,64.04264805,98.761,98.715,60.26603011]
[1770180000043,7.3698485,98.76,98.715,60.26603011]
[1770180000238,7.3698485,98.759,98.715,60.26603011]
[1770180000439,1.314e-05,98.79,98.73,141.9916]
[1770180000642,9.1207,98.81,98.716,142.0121]
[1770180000643,71.41603589,98.789,98.731,60.26603011]
[1770180000843,64.04264805,98.789,98.731,60.26603011]
[1770180001449,64.04264805,98.789,98.743,60.26603011]
[1770180003753,64.04264805,98.789,98.747,60.26603011]
[1770180005450,64.04264805,98.769,98.719,60.26603011]
[1770180005757,3.2822031,98.75,98.719,60.26603011]
[1770180007256,64.04264805,98.759,98.719,60.26603011]
[1770180009551,9.1258,98.754,98.719,60.26603011]
[1770180009756,64.04264805,98.749,98.692,60.26603011]
[1770180010157,3.2822031,98.74,98.692,60.26603011]
[1770180010451,3.28594447,98.74,98.692,60.26603011]
[1770180012359,9.1264,98.748,98.692,60.26603011]
[1770180013455,9.1273,98.739,98.692,60.26603011]
[1770180014661,64.04264805,98.729,98.679,60.26603011]
[1770180014864,3.28594447,98.72,98.679,60.26603011]
[1770180015062,9.13,98.71,98.679,60.26603011]
[1770180015260,12.41594447,98.71,98.65,3.28594447]
[1770180015656,67.32859252,98.71,98.648,404.14]
[1770180016161,3.28594447,98.7,98.64,12.42224447]
[1770180016557,67.32859252,98.7,98.64,12.42224447]
[1770180017255,67.32859252,98.7,98.641,60.26603011]
[1770180017657,3.28594447,98.67,98.614,60.26603011]
[1770180019265,3.28594447,98.67,98.614,69.40473011]
[1770180019464,64.04264805,98.679,98.614,69.40473011]
[1770180020162,64.04264805,98.689,98.631,60.26603011]
[1770180020362,3.28594447,98.66,98.631,60.26603011]
[1770180021261,67.32859252,98.67,98.631,60.26603011]
[1770180022167,3.28594447,98.66,98.631,60.26603011]
[1770180022364,67.32859252,98.67,98.631,60.26603011]
[1770180022968,64.04264805,98.67,98.631,60.26603011]
[1770180023167,3.28594447,98.69,98.631,60.26603011]
[1770180023371,61.22870293,98.69,98.631,60.26603011]
[1770180023965,61.22870293,98.69,98.633,62.08282851]
[1770180024165,3.28594447,98.68,98.633,62.08282851]
[1770180024365,3.28594447,98.67,98.633,62.08282851]
[1770180024673,3.28594447,98.66,98.608,62.08282851]
[1770180025768,3.28594447,98.66,98.612,62.08282851]
[1770180026767,3.28594447,98.66,98.614,62.08282851]
[1770180026968,61.22870293,98.67,98.614,62.08282851]
[1770180027464,3.28594447,98.67,98.627,62.08282851]
[1770180027666,3.28594447,98.68,98.627,62.08282851]
[1770180028665,3.28594447,98.68,98.632,9.137]
[1770180028970,3.28594447,98.68,98.633,62.08282851]
[1770180030468,3.28594447,98.68,98.637,62.08282851]
[1770180030769,3.28594447,98.69,98.637,62.08282851]
[1770180031370,61.22870293,98.68,98.64,9.1363]
[1770180031571,61.22870293,98.68,98.637,62.08282851]
[1770180032662,3.28594447,98.66,98.614,62.08282851]
[1770180032874,57.94275846,98.669,98.614,62.08282851]
[1770180033673,57.94275846,98.669,98.617,62.08282851]
[1770180041179,57.94275846,98.669,98.617,71.22122851]
[1770180041877,57.94275846,98.684,98.628,62.08282851]
[1770180042182,57.94275846,98.684,98.615,142.157]
[1770180042183,57.94275846,98.684,98.631,62.08282851]
[1770180042376,3.28594447,98.7,98.641,62.08282851]
[1770180042576,3.28594447,98.7,98.648,62.08282851]
[1770180043475,3.28594447,98.7,98.649,9.1355]
[1770180043681,3.28594447,98.7,98.65,62.08282851]
[1770180044371,57.94275846,98.699,98.65,62.08282851]
[1770180044772,57.94275846,98.699,98.653,62.08282851]
[1770180046482,57.94275846,98.699,98.655,62.08282851]
[1770180047578,57.94275846,98.699,98.657,62.08282851]
[1770180048782,57.94275846,98.699,98.663,9.1342]
[1770180050280,3.28594447,98.71,98.663,71.21702851]
[1770180050783,62.70934816,98.71,98.663,71.21702851]
[1770180051488,62.70934816,98.71,98.663,62.08282851]
[1770180052681,62.70934816,98.71,98.664,9.1341]
[1770180052881,62.70934816,98.71,98.664,69.91624155]
[1770180055883,62.70934816,98.71,98.673,9.1332]
[1770180056085,3.28594447,98.73,98.676,59.71631195]
[1770180056285,3.28594447,98.71,98.676,59.71631195]
[1770180056486,3.28594447,98.71,98.664,59.71631195]
[1770180056487,60.09359906,98.71,98.664,59.71631195]
[1770180061490,3.28594447,98.72,98.669,59.71631195]
[1770180062190,60.09359906,98.72,98.669,59.71631195]
[1770180062889,60.09359906,98.72,98.673,59.71631195]
[1770180063290,56.80765459,98.72,98.675,59.71631195]
[1770180064694,3.28594447,98.71,98.675,59.71631195]
[1770180064894,60.09359906,98.72,98.675,59.71631195]
[1770180065390,60.09359906,98.71,98.675,59.71631195]
[1770180065792,56.80765459,98.71,98.675,59.71631195]
[1770180080095,9.128,98.731,98.675,59.71631195]
[1770180080393,3.28759837,98.73,98.675,68.84941195]
[1770180080600,56.80765459,98.736,98.675,59.71631195]
[1770180081191,56.80765459,98.736,98.681,59.34801535]
[1770180081799,56.80765459,98.736,98.684,59.34801535]
[1770180085107,3.28759837,98.72,98.673,9.1333]
[1770180085404,56.99150382,98.719,98.673,9.1333]
[1770180085603,56.99150382,98.719,98.673,68.48131535]
[1770180088707,56.99150382,98.719,98.673,59.34801535]
[1770180092611,56.99150382,98.719,98.673,68.48121535]
[1770180093403,56.99150382,98.719,98.673,59.34801535]
[1770180093609,56.99150382,98.719,98.664,68.48211535]
[1770180093810,3.28759837,98.7,98.664,59.34801535]
[1770180094110,60.27910219,98.7,98.646,59.34801535]
[1770180096110,3.28759837,98.69,98.646,59.34801535]
[1770180096503,60.27910219,98.69,98.646,59.34801535]
[1770180097212,60.27910219,98.69,98.649,68.48351535]
[1770180099709,60.27910219,98.7,98.66,59.34801535]
[1770180099908,3.28759837,98.71,98.66,59.34801535]
[1770180100614,56.99150382,98.711,98.66,59.34801535]
[1770180100813,56.99150382,98.711,98.664,59.34801535]
[1770180101412,3.28759837,98.71,98.664,59.34801535]
[1770180101712,3.28759837,98.7,98.664,59.34801535]
[1770180101911,60.27910219,98.7,98.655,9.1349]
[1770180102114,3.28759837,98.69,98.65,59.34801535]
[1770180105815,56.99150382,98.7,98.632,142.1324]
[1770180105816,60.27910219,98.7,98.651,68.48331535]
[1770180120731,60.26129108,98.713,98.659,9.1346]
[1770180120928,63.54888945,98.71,98.66,60.28046504]
[1770180121730,63.54888945,98.71,98.662,69.41476504]
[1770180121932,60.26129108,98.71,98.662,60.28046504]
[1770180122435,60.26129108,98.738,98.683,60.28046504]
[1770180123726,60.26129108,98.738,98.695,60.28046504]
[1770180126839,63.54888945,98.73,98.695,60.28046504]
[1770180127136,3.28759837,98.71,98.673,60.28046504]
[1770180133542,60.26129108,98.709,98.654,60.28046504]
[1770180134749,60.26129108,98.709,98.657,60.28046504]
[1770180137347,3.28812992,98.7,98.657,60.28046504]
[1770180137554,63.549421,98.7,98.657,60.28046504]
[1770180138448,3.28812992,98.69,98.645,60.28046504]
[1770180138647,60.26129108,98.689,98.645,60.28046504]
[1770180139146,3.28812992,98.67,98.63,60.28046504]
[1770180139353,60.26129108,98.669,98.63,60.28046504]
[1770180139553,3.28812992,98.66,98.63,60.28046504]
[1770180140256,60.26129108,98.669,98.63,60.28046504]
[1770180142553,3.28812992,98.69,98.634,57.84380732]
[1770180146863,3.28812992,98.69,98.635,9.1368]
[1770180147058,3.28812992,98.69,98.636,57.84380732]
[1770180149962,60.72010635,98.693,98.641,57.84380732]
[1770180152169,9.1316,98.692,98.641,57.84380732]
[1770180152368,3.28812992,98.69,98.641,57.84380732]
[1770180152965,9.1319,98.689,98.641,57.84380732]
[1770180155271,3.28812992,98.69,98.641,57.84380732]
[1770180162176,3.28812992,98.69,98.643,57.84380732]
[1770180163171,3.28812992,98.69,98.646,57.84380732]
[1770180164977,3.28812992,98.69,98.65,57.84380732]
[1770180166179,3.28812992,98.69,98.654,57.84380732]
[1770180166970,3.28812992,98.69,98.656,57.84380732]
[1770180168286,3.28812992,98.69,98.657,9.1347]
[1770180168685,60.72010635,98.693,98.657,9.1347]
[1770180172786,56.89372412,98.689,98.657,9.1347]
[1770180173190,56.89372412,98.689,98.645,58.28326998]
[1770180174188,60.18185404,98.68,98.634,58.28326998]
[1770180174385,3.28812992,98.67,98.634,58.28326998]
[1770180174792,60.18185404,98.67,98.634,58.28326998]
[1770180180391,56.89372412,98.67,98.634,58.28326998]
[1770180182395,56.89372412,98.67,98.623,59.34452052]
[1770180182596,58.63639921,98.659,98.623,59.34452052]
[1770180182786,142.0744,98.673,98.591,59.34452052]
[1770180182787,58.63639921,98.649,98.591,59.34452052]
[1770180182987,200.74539921,98.649,98.591,59.34452052]
[1770180183186,58.63639921,98.629,98.57,3.28812992]
[1770180183391,142.109,98.649,98.571,59.34452052]
[1770180183392,58.63639921,98.619,98.571,59.34452052]
[1770180184291,9.1387,98.615,98.571,59.34452052]
[1770180188200,58.63639921,98.619,98.571,59.34452052]
[1770180192097,3.28812992,98.58,98.539,59.34452052]
[1770180193002,61.92452913,98.59,98.539,59.34452052]
[1770180193396,3.28812992,98.58,98.539,59.34452052]
[1770180193594,58.63639921,98.579,98.539,59.34452052]
[1770180194498,58.63639921,98.579,98.527,9.1468]
[1770180194705,3.29735615,98.59,98.537,59.34452052]
[1770180195597,58.63639921,98.62,98.561,59.34452052]
[1770180195999,3.29735615,98.61,98.561,59.34452052]
[1770180197404,3.29735615,98.63,98.571,59.34452052]
[1770180197899,61.93375536,98.63,98.571,59.34452052]
[1770180199100,61.93375536,98.64,98.581,59.34452052]
[1770180201602,3.29735615,98.62,98.581,59.34452052]
[1770180202301,62.45527957,98.62,98.581,59.34452052]
[1770180205303,62.45527957,98.62,98.567,54.54276927]
[1770180206604,62.45527957,98.62,98.569,54.54276927]
[1770180207302,62.45527957,98.62,98.57,9.1428]
[1770180207503,62.45527957,98.62,98.571,54.54276927]
[1770180208404,62.45527957,98.62,98.575,54.54276927]
[1770180209796,62.45527957,98.62,98.577,9.1422]
[1770180210607,3.29735615,98.63,98.577,63.68496927]
[1770180210798,62.45527957,98.63,98.577,63.68496927]
[1770180211599,62.45527957,98.63,98.587,9.1412]
[1770180212399,62.45527957,98.63,98.587,54.54276927]
[1770180212606,59.15792342,98.643,98.587,54.54276927]
[1770180213707,59.15792342,98.643,98.597,9.1403]
[1770180213904,59.15792342,98.643,98.597,63.68306927]
[1770180214103,3.29735615,98.64,98.597,63.68306927]
[1770180215104,62.45527957,98.64,98.597,63.68306927]
[1770180215410,59.15792342,98.619,98.585,9.1414]
[1770180218211,59.15792342,98.619,98.571,54.54276927]
[1770180223217,59.15792342,98.619,98.577,54.54276927]
[1770180223413,62.45527957,98.63,98.577,54.54276927]
[1770180223817,62.45527957,98.63,98.579,54.54276927]
[1770180225820,62.45527957,98.63,98.58,9.1419]